bitfinex/quotes_ETHUSD_20230119
["timestamp","ask_amount","ask_price","bid_price","bid_amount"]
[1674099214137,5.41041467,1525.0,1524.9,0.00138651]
[1674099217407,10.56944017,1525.0,1524.9,0.00138651]
[1674099217559,23.63400096,1525.0,1524.9,0.00138651]
[1674099217950,25.12590096,1525.0,1524.9,0.00138651]
[1674099221661,26.50022458,1525.0,1524.9,0.00138651]
[1674099221871,25.50022458,1525.0,1524.9,0.00138651]
[1674099222323,23.78190185,1525.0,1524.9,0.00138651]
[1674099222654,24.81251352,1525.0,1524.9,0.00138651]
[1674099222875,24.32061352,1525.0,1524.9,0.00138651]
[1674099223258,22.9462899,1525.0,1524.9,0.00138651]
[1674099226066,16.3889199,1525.0,1524.9,0.00138651]
[1674099226286,11.96736323,1525.0,1524.9,0.00138651]
[1674099227278,13.34168685,1525.0,1524.9,0.00138651]
[1674099227590,19.36034518,1525.0,1524.9,0.00138651]
[1674099227811,20.39096302,1525.0,1524.9,0.00138651]
[1674099228116,23.8801398,1525.0,1524.9,0.00138651]
[1674099228281,26.8801398,1525.0,1524.9,0.00138651]
[1674099230016,28.59846253,1525.0,1524.9,0.00138651]
[1674099231009,1.00170095,1524.9,1524.8,0.11142022]
[1674099231258,17.95338922,1524.9,1524.8,0.11142022]
[1674099231484,21.66131253,1524.9,1524.8,0.11142022]
[1674099231693,22.29861257,1524.9,1524.8,0.11142022]
[1674099232003,23.67293619,1524.9,1524.8,0.11142022]
[1674099232178,22.98612403,1524.9,1524.8,0.11142022]
[1674099232605,1.90598348,1524.9,1524.8,1.16142022]
[1674099233043,1.20268344,1524.9,1524.8,1.16142022]
[1674099235719,0.00170095,1524.9,1524.8,1.16142022]
[1674099236099,0.00170095,1524.9,1524.8,9.25765022]
[1674099236367,0.00170095,1524.9,1524.8,11.57534454]
[1674099238206,0.00170095,1524.9,1524.8,5.01711454]
[1674099240164,0.00170095,1524.9,1524.8,1.22396475]
[1674099240165,0.68918241,1524.9,1524.8,1.22396475]
[1674099240472,0.00170095,1524.9,1524.8,1.16142022]
[1674099241018,1.1956144,1525.0,1524.9,1.05050769]
[1674099241202,0.50813294,1525.0,1524.9,1.05050769]
[1674099241532,1.1956144,1525.0,1524.9,0.00050769]
[1674099241858,1.47901006,1525.0,1524.9,0.00050769]
[1674099242382,1.47901006,1525.0,1524.9,1.05050769]
[1674099243499,1.47901006,1525.0,1524.9,0.00050769]
[1674099243708,2.50984971,1525.0,1524.9,0.00050769]
[1674099244061,20.65389379,1525.0,1524.9,0.00050769]
[1674099244210,20.94989379,1525.0,1524.9,0.00050769]
[1674099245537,13.01820017,1525.0,1524.9,0.00050769]
[1674099246314,14.39252379,1525.0,1524.9,0.00050769]
[1674099246520,20.94989379,1525.0,1524.9,0.00050769]
[1674099246795,19.91905414,1525.0,1524.9,0.00050769]
[1674099247156,21.63737687,1525.0,1524.9,0.00050769]
[1674099247365,20.26305325,1525.0,1524.9,0.00050769]
[1674099247574,20.41187999,1525.0,1524.9,0.00050769]
[1674099251792,20.95151513,1525.0,1524.9,0.00050769]
[1674099252003,19.91997999,1525.0,1524.9,0.00050769]
[1674099252571,20.9515163,1525.0,1524.9,0.00050769]
[1674099252802,6.78606197,1525.0,1524.9,0.00050769]
[1674099253116,1.54519615,1525.0,1524.9,1.05050769]
[1674099253259,1.47919615,1525.0,1524.9,1.05050769]
[1674099255040,1.19580049,1525.0,1524.9,1.05050769]
[1674099255307,1.47931312,1525.0,1524.9,1.16670048]
[1674099255666,1.47930834,1525.0,1524.9,1.16670048]
[1674099255840,1.47930834,1525.0,1524.9,1.05050769]
[1674099256987,1.47928952,1525.0,1524.9,7.60830769]
[1674099257197,1.47929488,1525.0,1524.9,7.67085222]
[1674099257584,1.47929488,1525.0,1524.9,9.10486446]
[1674099258430,0.50813294,1525.0,1524.9,9.10486446]
[1674099260571,0.50813294,1525.0,1524.9,17.20066446]
[1674099263249,0.50813294,1525.0,1524.9,30.14526446]
[1674099263836,0.50813294,1525.0,1524.9,23.58746446]
[1674099268304,0.50813294,1525.0,1524.9,30.14526446]
[1674099272753,0.50813294,1525.0,1524.9,31.69126446]
[1674099284749,0.50813294,1525.0,1524.9,31.69075677]
[1674099285319,0.50813294,1525.0,1524.9,28.60675677]
[1674099292766,0.50813294,1525.0,1524.9,28.61233484]
[1674099294522,0.50813294,1525.0,1524.9,29.46508953]
[1674099295083,0.50611548,1525.0,1524.9,29.46508953]
[1674099295901,0.50611548,1525.0,1524.9,30.53077424]
[1674099296127,0.50611548,1525.0,1524.9,30.53095437]
[1674099296449,0.50611548,1525.0,1524.9,29.46508953]
[1674099296623,0.50611548,1525.0,1524.9,31.81596385]
[1674099297550,1.52333631,1525.3,1524.9,33.10996385]
[1674099297762,1.52333631,1525.3,1525.2,1.292]
[1674099297763,0.4918,1525.3,1525.2,1.292]
[1674099298028,0.4918,1525.4,1525.2,20.96153]
[1674099298236,0.4918,1525.4,1525.2,21.02407453]
[1674099298545,0.4918,1525.4,1525.3,15.21456745]
[1674099298757,0.4918,1525.4,1525.3,15.27711198]
[1674099298950,0.4917,1525.5,1525.3,15.27711198]
[1674099300926,1.52323631,1525.5,1525.3,15.27711198]
[1674099301142,0.24410392,1525.4,1525.3,15.27711198]
[1674099302187,1.52323631,1525.5,1525.3,15.27711198]
[1674099302430,1.52323631,1525.5,1525.4,8.0833612]
[1674099302642,1.76731458,1525.5,1525.4,8.14590573]
[1674099303540,1.27561458,1525.5,1525.4,8.14590573]
[1674099304802,1.61932774,1525.5,1525.4,0.06254453]
[1674099305007,2.90832774,1525.5,1525.2,0.06254453]
[1674099305338,1.27476043,1525.4,1525.1,25.26227453]
[1674099306304,0.24407827,1525.3,1525.1,25.26227453]
[1674099306526,2.03068216,1525.4,1525.1,18.70561453]
[1674099306527,3.40593163,1525.4,1525.1,18.70561453]
[1674099306740,0.24405246,1525.3,1525.1,18.70561453]
[1674099307152,2.40593163,1525.4,1525.1,18.70561453]
[1674099307329,2.64998246,1525.4,1525.1,18.70561453]
[1674099307739,0.68720603,1525.3,1525.1,18.70561453]
[1674099308207,0.93125686,1525.3,1525.1,18.70561453]
[1674099308493,0.68720603,1525.3,1525.1,23.17106662]
[1674099313128,0.68720603,1525.3,1525.1,29.72800662]
[1674099315852,0.9312397,1525.3,1525.1,29.72800662]
[1674099316067,0.68720603,1525.3,1525.1,29.72800662]
[1674099318183,0.68720603,1525.2,1525.1,29.72598073]
[1674099318392,0.93136818,1525.2,1525.1,18.70358864]
[1674099318952,0.68720603,1525.2,1525.1,18.70358864]
[1674099319164,1.71788819,1525.3,1525.1,18.70358864]
[1674099319374,0.68720603,1525.2,1525.1,18.70358864]
[1674099319993,1.71788819,1525.3,1525.1,18.70358864]
[1674099320319,0.93153356,1525.2,1525.1,18.70358864]
[1674099320537,0.68720603,1525.2,1525.1,18.70358864]
[1674099321117,0.68720603,1525.2,1525.1,0.06254453]
[1674099321347,0.68720603,1525.2,1525.0,22.70020453]
[1674099323135,1.71788819,1525.3,1525.0,27.16187098]
[1674099323734,1.96221305,1525.3,1525.0,27.16187098]
[1674099324623,1.96221305,1525.3,1525.0,20.60477098]
[1674099325250,0.93153089,1525.2,1525.0,20.60477098]
[1674099325465,0.68720603,1525.2,1525.0,20.60477098]
[1674099325886,0.93154685,1525.2,1525.0,20.60477098]
[1674099326098,0.68720603,1525.2,1525.0,20.60477098]
[1674099326505,0.68720603,1525.2,1525.0,16.14310453]
[1674099327518,0.93156315,1525.2,1525.0,16.14310453]
[1674099327728,0.68720603,1525.2,1525.0,16.14310453]
[1674099330285,0.68471852,1525.2,1525.0,16.14310453]
[1674099330886,1.03068216,1525.3,1525.0,16.14310453]
[1674099331305,1.03068216,1525.3,1525.0,20.60483698]
[1674099332875,1.27493515,1525.3,1525.0,20.60483698]
[1674099336448,2.65018462,1525.3,1525.0,20.60483698]
[1674099336661,2.65018462,1525.3,1525.0,9.58604453]
[1674099336921,1.27493515,1525.2,1525.0,9.58604453]
[1674099337092,1.27493515,1525.2,1525.0,0.06254453]
[1674099337302,2.40593163,1525.2,1524.9,12.42124453]
[1674099337520,1.27493515,1525.1,1524.9,12.42124453]
[1674099338608,1.0,1525.1,1524.9,12.42124453]
[1674099338972,2.03068216,1525.2,1524.9,12.42124453]
[1674099339183,0.2441865,1525.1,1524.9,18.97904453]
[1674099339428,3.40593163,1525.2,1524.9,18.97904453]
[1674099339654,0.24419078,1525.1,1524.9,18.97904453]
[1674099340499,0.93190456,1525.1,1524.9,18.97904453]
[1674099344597,0.68771378,1525.1,1524.9,18.97904453]
[1674099344769,0.93193567,1525.1,1524.9,18.97904453]
[1674099345409,1.96261783,1525.1,1524.9,12.42124453]
[1674099345944,1.96261783,1525.1,1524.9,0.06254453]
[1674099346133,0.93193567,1525.0,1524.8,10.37546475]
[1674099346342,0.93193567,1525.0,1524.8,0.17396475]
[1674099346569,0.68771378,1525.0,1524.8,0.11142022]
[1674099346996,0.93191802,1525.0,1524.8,0.11142022]
[1674099347541,1.93191802,1525.0,1524.8,0.11142022]
[1674099347717,1.68771378,1525.0,1524.8,0.11142022]
[1674099348272,2.22871378,1524.9,1524.8,0.11142022]
[1674099348423,3.19497029,1524.9,1524.8,0.11142022]
[1674099348632,9.26087029,1524.9,1524.8,0.11142022]
[1674099348845,9.32687029,1524.9,1524.8,0.11142022]
[1674099350354,0.296,1524.9,1524.8,0.11142022]
[1674099350541,0.23,1524.9,1524.8,0.11142022]
[1674099351003,7.80198952,1524.9,1524.8,0.11142022]
[1674099351160,7.86798952,1524.9,1524.8,0.10757172]
[1674099351374,8.79978268,1524.9,1524.8,0.10757172]
[1674099351584,12.09153027,1524.9,1524.8,0.10757172]
[1674099352240,11.84745089,1524.9,1524.8,0.10757172]
[1674099353893,18.64919656,1524.9,1524.8,0.10757172]
[1674099354069,19.14109656,1524.9,1524.8,0.10757172]
[1674099354284,12.33935089,1524.9,1524.8,0.10757172]
[1674099354435,12.58325642,1524.9,1524.8,0.10757172]
[1674099355167,6.02545642,1524.9,1524.8,0.10757172]
[1674099356273,5.78155089,1524.9,1524.8,0.10757172]
[1674099356462,5.09383711,1524.9,1524.8,0.10757172]
[1674099356787,5.78155089,1524.9,1524.8,0.10757172]
[1674099357013,6.02532934,1524.9,1524.8,0.10757172]
[1674099357578,5.78155089,1524.9,1524.8,0.10757172]
[1674099357793,7.31632522,1524.9,1524.8,0.10757172]
[1674099358438,11.9532936,1524.9,1524.8,0.10757172]
[1674099358997,20.7277936,1524.9,1524.8,0.10757172]
[1674099359430,24.44790542,1524.9,1524.8,0.10757172]
[1674099359743,20.7277936,1524.9,1524.8,0.10757172]
[1674099360648,22.10304307,1524.9,1524.8,0.10757172]
[1674099360864,20.7277936,1524.9,1524.8,0.10757172]
[1674099362013,22.10304307,1524.9,1524.8,0.10757172]
[1674099362226,20.7277936,1524.9,1524.8,0.10757172]
[1674099363101,22.10304307,1524.9,1524.8,0.10757172]
[1674099363464,20.7277936,1524.9,1524.8,0.10757172]
[1674099365280,24.79247273,1524.9,1524.8,0.10757172]
[1674099365676,24.79247273,1524.9,1524.8,0.02657313]
[1674099366993,26.51079546,1524.9,1524.8,0.02657313]
[1674099367361,24.79247273,1524.9,1524.8,0.02657313]
[1674099368724,22.10150091,1524.9,1524.8,0.02657313]
[1674099369147,18.09218555,1524.9,1524.8,0.02657313]
[1674099369353,19.12132555,1524.9,1524.8,0.02657313]
[1674099369624,18.09218555,1524.9,1524.8,0.02657313]
[1674099370664,37.76558555,1524.9,1524.8,0.02657313]
[1674099370877,38.4044076,1524.9,1524.8,0.02657313]
[1674099371453,24.7969076,1524.9,1524.8,0.02657313]
[1674099371664,20.78271808,1524.9,1524.8,0.02657313]
[1674099372669,28.42001139,1524.9,1524.8,0.02657313]
[1674099372979,27.68358397,1524.9,1524.8,0.02657313]
[1674099373365,29.05883344,1524.9,1524.8,0.02657313]
[1674099373571,27.68358397,1524.9,1524.8,0.02657313]
[1674099373799,31.70345951,1524.9,1524.8,0.02657313]
[1674099374616,33.07870898,1524.9,1524.8,0.02657313]
[1674099375042,31.70345951,1524.9,1524.8,0.02657313]
[1674099375497,33.07870898,1524.9,1524.8,0.02657313]
[1674099376290,32.04956898,1524.9,1524.8,0.02657313]
[1674099379291,33.07960479,1524.9,1524.8,0.02657313]
[1674099380457,32.04956898,1524.9,1524.8,0.02657313]
[1674099381029,32.88454224,1524.9,1524.8,0.00662002]
[1674099381907,32.53948603,1524.9,1524.8,0.00662002]
[1674099382333,33.56980353,1524.9,1524.8,0.00662002]
[1674099383339,32.19653701,1524.9,1524.8,0.00662002]
[1674099384233,33.56980353,1524.9,1524.8,0.00662002]
[1674099386384,26.52010353,1524.9,1524.8,0.00662002]
[1674099386602,21.20622799,1524.9,1524.8,0.00662002]
[1674099388000,13.43172799,1524.9,1524.8,0.00662002]
[1674099388186,12.79290594,1524.9,1524.8,0.00662002]
[1674099388695,8.12789183,1524.9,1524.8,0.00662002]
[1674099388962,1.2273365,1524.9,1524.8,1.05662002]
[1674099389193,1.1613365,1524.9,1524.8,1.05662002]
[1674099389746,1.1613365,1524.9,1524.8,0.00662002]
[1674099390491,2.191654,1524.9,1524.8,0.00662002]
[1674099390948,8.06189183,1524.9,1524.8,0.00662002]
[1674099391273,8.12789183,1524.9,1524.8,0.00662002]
[1674099391635,9.50115835,1524.9,1524.8,0.00662002]
[1674099393599,9.50115835,1524.9,1524.8,0.35662002]
[1674099393892,8.12789183,1524.9,1524.8,0.35662002]
[1674099395264,9.50115835,1524.9,1524.8,0.35662002]
[1674099395986,8.12789183,1524.9,1524.8,0.35662002]
[1674099396163,9.50115835,1524.9,1524.8,0.35662002]
[1674099396626,16.05895835,1524.9,1524.8,0.35662002]
[1674099396786,20.86692275,1524.9,1524.8,0.35662002]
[1674099396991,15.6674629,1524.9,1524.8,0.35662002]
[1674099397313,8.12922275,1524.9,1524.8,0.35662002]
[1674099400260,13.48091117,1524.9,1524.5,0.11429603]
[1674099400514,0.68787505,1524.6,1524.3,0.12034545]
[1674099400688,25.00903302,1524.4,1524.3,0.12034545]
[1674099400906,28.31880735,1524.4,1524.3,0.12034545]
[1674099401131,29.04090735,1524.4,1524.3,0.12034545]
[1674099401308,36.87988694,1524.4,1524.3,0.12034545]
[1674099401521,36.14565947,1524.4,1524.3,0.12034545]
[1674099402221,37.51870859,1524.4,1524.3,0.12034545]
[1674099402358,7.02554956,1524.4,1524.3,0.12034545]
[1674099402568,3.77983853,1524.4,1524.3,0.12034545]
[1674099402843,3.02724525,1524.4,1524.3,0.12034545]
[1674099403462,3.71347425,1524.4,1524.3,0.12034545]
[1674099403637,2.68363106,1524.4,1524.3,0.12034545]
[1674099406050,2.43985673,1524.4,1524.3,0.12034545]
[1674099406308,2.86724167,1524.4,1524.3,0.12034545]
[1674099406689,9.42719167,1524.4,1524.3,0.12034545]
[1674099407047,2.50585673,1524.4,1524.3,0.12034545]
[1674099407195,7.59147773,1524.4,1524.3,0.12034545]
[1674099407416,7.65747773,1524.4,1524.3,0.12034545]
[1674099408245,9.90676872,1524.4,1524.3,0.12034545]
[1674099408459,10.13676872,1524.4,1524.3,0.12034545]
[1674099408828,16.69671872,1524.4,1524.3,0.12034545]
[1674099410878,21.28246631,1524.4,1524.3,0.12034545]
[1674099411420,22.41130804,1524.4,1524.3,0.12034545]
[1674099411974,21.91920804,1524.4,1524.3,0.12034545]
[1674099415313,21.28246631,1524.4,1524.3,0.12034545]
[1674099416477,10.13676872,1524.4,1524.3,0.12034545]
[1674099416687,7.88747773,1524.4,1524.3,0.12034545]
[1674099421727,1.32752773,1524.4,1524.3,0.12034545]
[1674099421942,1.03152773,1524.4,1524.3,0.12034545]
[1674099423153,1.03152773,1524.4,1524.3,0.11720857]
[1674099425207,1.03152773,1524.4,1524.3,7.67758857]
[1674099425412,1.03152773,1524.4,1524.3,10.88142493]
[1674099427627,1.03152773,1524.4,1524.3,9.88142493]
[1674099428794,1.03152773,1524.4,1524.3,3.32104493]
[1674099429002,1.03152773,1524.4,1524.3,3.25504493]
[1674099430412,1.03152773,1524.4,1524.3,1.70804493]
[1674099433612,1.03152773,1524.4,1524.3,2.70804493]
[1674099433821,1.03152773,1524.4,1524.3,1.70804493]
[1674099439348,1.03152773,1524.4,1524.3,9.80742493]
[1674099439534,1.03152773,1524.4,1524.3,17.98080493]
[1674099441360,1.03152773,1524.4,1524.3,16.44180493]
[1674099441664,1.03152773,1524.4,1524.3,14.89480493]
[1674099442885,1.03152773,1524.4,1524.3,16.42880493]
[1674099443925,1.03152773,1524.4,1524.3,14.89480493]
[1674099449951,1.03152773,1524.4,1524.3,14.89480493]
[1674099459404,1.03152773,1524.4,1524.3,15.59141101]
[1674099460717,1.03152773,1524.4,1524.3,14.89480493]
[1674099464395,1.03152773,1524.4,1524.3,15.59162676]
[1674099464545,1.03152773,1524.4,1524.3,14.89480493]
[1674099465217,1.03152773,1524.4,1524.3,15.59178072]
[1674099465914,1.03152773,1524.4,1524.3,14.89480493]
[1674099466123,30.07453127,1524.0,1523.9,2.70535598]
[1674099466494,30.14053127,1524.0,1523.9,40.43585328]
[1674099466712,30.14053127,1524.0,1523.9,47.02415957]
[1674099467383,30.14053127,1524.0,1523.9,50.02415957]
[1674099469859,28.31761098,1524.0,1523.9,50.02415957]
[1674099471637,28.31761098,1524.0,1523.9,48.31880359]
[1674099474971,28.31761098,1524.0,1523.9,46.77180359]
[1674099476239,28.31761098,1524.0,1523.9,48.49016174]
[1674099480326,28.31761098,1524.0,1523.9,49.53316174]
[1674099482984,28.31761098,1524.0,1523.9,47.81480359]
[1674099483215,14.28232666,1524.0,1523.9,51.74563315]
[1674099483369,8.0143,1524.4,1524.0,3.4163598]
[1674099483587,8.0803,1524.4,1524.3,2.98234415]
[1674099483906,0.066,1524.4,1524.3,23.27179695]
[1674099484103,0.4921,1524.5,1524.3,22.04279695]
[1674099484308,0.4921,1524.5,1524.4,14.80497205]
[1674099484558,0.4921,1524.5,1524.4,14.87097205]
[1674099484982,0.492,1524.6,1524.4,14.87097205]
[1674099485149,0.492,1524.6,1524.4,14.26265925]
[1674099486934,0.492,1524.6,1524.4,15.26265925]
[1674099487144,8.863929,1524.7,1524.5,1.52626593]
[1674099487401,0.558,1524.7,1524.6,6.55909]
[1674099487569,0.492,1524.7,1524.6,6.62509]
[1674099490037,0.492,1524.7,1524.6,13.18418]
[1674099490217,0.492,1524.7,1524.6,15.31114759]
[1674099490440,0.74663996,1524.8,1524.6,15.31114759]
[1674099490634,0.06041096,1524.8,1524.7,1.0]
[1674099490842,0.06041096,1524.8,1524.7,14.11532]
[1674099491055,0.06041096,1524.8,1524.7,16.59755776]
[1674099491396,0.06041096,1524.8,1524.7,15.59955776]
[1674099492622,0.06041096,1524.8,1524.7,9.04089776]
[1674099492843,0.06041096,1524.8,1524.7,6.62466]
[1674099503648,0.06041096,1524.8,1524.7,6.62099474]
[1674099512123,0.06041096,1524.8,1524.7,0.066]
[1674099512124,1.74463996,1524.8,1524.7,0.066]
[1674099512280,2.30637049,1524.8,1524.6,6.62481]
[1674099512486,2.31436133,1524.8,1524.6,0.066]
[1674099512699,2.31436133,1524.8,1524.5,15.47506]
[1674099512700,3.34420452,1524.8,1524.5,15.47506]
[1674099513017,1.285,1524.7,1524.5,15.47506]
[1674099514203,1.285,1524.7,1524.5,0.066]
[1674099514204,1.88312045,1524.7,1524.5,0.066]
[1674099514430,2.587,1524.6,1524.4,0.066]
[1674099514752,2.470229,1524.6,1524.2,15.25425]
[1674099514967,4.27209426,1524.6,1524.2,15.25425]
[1674099516349,5.27209426,1524.6,1524.2,15.25425]
[1674099516477,5.33809426,1524.6,1524.2,15.25425]
[1674099516923,4.33809426,1524.6,1524.2,15.25425]
[1674099517131,5.27209426,1524.6,1524.2,15.25425]
[1674099517340,4.33809426,1524.6,1524.2,15.25425]
[1674099517554,4.27209426,1524.6,1524.2,15.25425]
[1674099517777,5.27209426,1524.6,1524.2,15.25425]
[1674099517995,5.33809426,1524.6,1524.2,15.25425]
[1674099518640,4.33809426,1524.6,1524.2,15.25425]
[1674099518808,4.27209426,1524.6,1524.2,15.25425]
[1674099519572,4.27209426,1524.6,1524.2,8.6936]
[1674099519906,3.78009426,1524.6,1524.2,15.25425]
[1674099520494,1.295,1524.5,1524.2,15.25425]
[1674099520708,1.295,1524.5,1524.2,18.17750053]
[1674099522477,1.295,1524.5,1524.2,15.25425]
[1674099527849,1.295,1524.5,1524.2,15.25049055]
[1674099529362,1.291,1524.4,1524.2,0.066]
[1674099529529,1.295,1524.3,1524.0,12.0436098]
[1674099529743,1.295,1524.3,1524.0,14.00244998]
[1674099532285,1.295,1524.3,1524.0,12.0436098]
[1674099540718,1.295,1524.3,1524.0,18.6052798]
[1674099541126,1.295,1524.2,1524.0,2.4823598]
[1674099541312,1.525,1524.2,1524.0,2.4163598]
[1674099541503,2.966589,1524.2,1524.0,2.4163598]
[1674099545242,9.527479,1524.2,1524.0,2.4163598]
[1674099545459,10.085679,1524.2,1524.0,2.4163598]
[1674099550542,10.085679,1524.2,1524.0,2.41268431]
[1674099550830,2.0832,1524.2,1524.0,2.41268431]
[1674099551124,1.7872,1524.2,1524.0,2.41268431]
[1674099554580,8.34804,1524.2,1524.0,2.41268431]
[1674099554916,7.92184,1524.2,1524.0,2.41268431]
[1674099555381,1.289,1524.1,1524.0,2.41268431]
[1674099558556,7.92184,1524.2,1524.0,2.41268431]
[1674099558984,1.361,1524.2,1524.0,2.41268431]
[1674099559160,1.295,1524.2,1524.0,2.41268431]
[1674099559384,2.96402922,1524.2,1524.0,2.41268431]
[1674099559593,1.295,1524.1,1524.0,2.41268431]
[1674099564328,16.83818822,1524.2,1524.0,2.41268431]
[1674099567902,17.86803141,1524.2,1524.0,2.41268431]
[1674099568443,1.914229,1524.1,1524.0,2.41268431]
[1674099568661,10.38507214,1524.1,1524.0,2.41268431]
[1674099568836,10.45107214,1524.1,1524.0,2.41268431]
[1674099569299,9.76484314,1524.1,1524.0,2.41268431]
[1674099571895,7.85524,1524.1,1524.0,2.41268431]
[1674099574857,9.10401586,1524.1,1524.0,2.41268431]
[1674099575070,8.541469,1524.1,1524.0,2.41268431]
[1674099575330,7.85524,1524.1,1524.0,2.41268431]
[1674099575707,9.10400848,1524.1,1524.0,2.41268431]
[1674099577381,8.541469,1524.1,1524.0,2.41268431]
[1674099577628,7.85524,1524.1,1524.0,2.41268431]
[1674099577802,8.541469,1524.1,1524.0,2.41268431]
[1674099578013,7.85524,1524.1,1524.0,2.41268431]
[1674099579054,9.10399769,1524.1,1524.0,2.41268431]
[1674099580001,9.10399769,1524.1,1523.9,0.12631172]
[1674099580211,8.541469,1524.1,1523.9,0.12631172]
[1674099583510,9.57131219,1524.1,1523.9,0.12631172]
[1674099585097,0.686229,1524.0,1523.9,0.12631172]
[1674099585730,9.57131219,1524.1,1523.9,0.12631172]
[1674099587677,0.752229,1524.1,1523.9,6.68842172]
[1674099587943,0.686229,1524.2,1524.0,8.52516217]
[1674099588110,0.688229,1524.3,1524.0,15.15078217]
[1674099588321,0.686229,1524.3,1524.1,1.51507822]
[1674099588659,1.24767411,1524.3,1524.1,8.07423469]
[1674099588868,0.686229,1524.3,1524.2,0.80742347]
[1674099589267,1.24761518,1524.3,1524.2,0.80742347]
[1674099589481,0.686229,1524.3,1524.2,0.80742347]
[1674099590089,0.686229,1524.3,1524.2,7.36823347]
[1674099590301,0.686229,1524.4,1524.2,14.99504347]
[1674099590564,0.686229,1524.5,1524.3,2.79450435]
[1674099590721,1.24741187,1524.5,1524.3,15.91526435]
[1674099590932,0.686229,1524.5,1524.4,1.59152644]
[1674099591142,0.686229,1524.5,1524.4,8.15147644]
[1674099591370,0.686229,1524.6,1524.4,14.77742644]
[1674099591587,1.71607219,1524.6,1524.4,14.77742644]
[1674099591781,2.2769745,1524.6,1524.4,14.77742644]
[1674099591981,1.71607219,1524.6,1524.4,8.21747644]
[1674099592209,1.24713848,1524.5,1524.4,1.65752644]
[1674099592448,1.24713848,1524.5,1524.3,8.12588435]
[1674099592449,0.686229,1524.5,1524.3,8.12588435]
[1674099593297,1.71607219,1524.6,1524.3,8.12588435]
[1674099593519,2.27679785,1524.6,1524.3,8.12588435]
[1674099593667,2.27290681,1524.6,1524.4,0.81258843]
[1674099595486,0.686229,1524.6,1524.4,0.81258843]
[1674099595676,1.24686181,1524.6,1524.4,0.81258843]
[1674099596603,1.24686181,1524.6,1524.3,1.56550435]
[1674099596827,1.24686181,1524.6,1524.3,4.49950435]
[1674099597671,1.24686181,1524.6,1524.3,1.49950435]
[1674099597888,0.686229,1524.5,1524.2,18.43509347]
[1674099598239,1.24686181,1524.5,1524.2,18.43509347]
[1674099598454,1.24686181,1524.5,1524.2,11.0672]
[1674099598455,0.686229,1524.4,1524.2,11.0672]
[1674099598612,1.24686181,1524.4,1524.2,11.0672]
[1674099599299,1.24686181,1524.4,1524.2,0.066]
[1674099599300,2.24686181,1524.4,1524.2,0.066]
[1674099599451,1.686229,1524.4,1524.1,8.6146]
[1674099599665,0.686229,1524.4,1524.1,15.17584]
[1674099599914,2.24674594,1524.4,1524.1,15.17584]
[1674099600144,1.686229,1524.4,1524.1,15.17584]
[1674099603087,0.686229,1524.4,1524.1,15.17584]
[1674099603256,1.24666027,1524.4,1524.1,15.17584]
[1674099605402,1.24666027,1524.4,1524.1,8.6146]
[1674099605403,15.19215008,1524.4,1524.1,8.6146]
[1674099605708,1.408329,1524.3,1524.1,0.066]
[1674099605944,1.408329,1524.3,1524.0,11.0544]
[1674099605945,7.85581,1524.2,1524.0,11.0544]
[1674099606139,7.92181,1524.2,1524.0,11.0544]
[1674099606447,8.608039,1524.2,1524.0,11.0544]
[1674099606667,8.608039,1524.2,1524.0,0.066]
[1674099606819,10.4154398,1524.2,1523.9,0.12631172]
[1674099608506,1.295,1524.1,1523.9,0.12631172]
[1674099608848,9.034749,1524.1,1523.9,0.12631172]
[1674099609056,9.100749,1524.1,1523.9,0.12631172]
[1674099609399,0.9100749,1524.0,1523.9,0.12631172]
[1674099609754,2.4350749,1524.0,1523.9,0.12631172]
[1674099610444,8.9967449,1524.0,1523.9,0.12631172]
[1674099610616,9.0627449,1524.0,1523.9,0.12631172]
[1674099613718,11.38416046,1524.0,1523.9,0.12631172]
[1674099614031,19.6846927,1524.0,1523.9,0.12631172]
[1674099615133,18.65427714,1524.0,1523.9,0.12631172]
[1674099615340,21.94602473,1524.0,1523.9,0.12631172]
[1674099615676,22.97644029,1524.0,1523.9,0.12631172]
[1674099615883,23.82312362,1524.0,1523.9,0.12631172]
[1674099616302,23.82312362,1524.0,1523.9,0.12339352]
[1674099616498,22.79270806,1524.0,1523.9,0.12339352]
[1674099617236,21.94602473,1524.0,1523.9,0.12339352]
[1674099617646,14.13769249,1524.0,1523.9,0.12339352]
[1674099617861,4.0542749,1524.0,1523.9,0.12339352]
[1674099618107,3.4960749,1524.0,1523.9,0.12339352]
[1674099618282,3.9882749,1524.0,1523.9,0.12339352]
[1674099620231,3.0782,1524.0,1523.9,0.12339352]
[1674099620382,1.7832,1524.0,1523.9,0.12339352]
[1674099621333,1.291,1524.0,1523.9,0.12339352]
[1674099624395,22.55617,1524.1,1523.9,0.12339352]
[1674099624598,2.255617,1524.0,1523.9,0.12339352]
[1674099630281,29.11778,1524.1,1523.9,0.12339352]
[1674099631374,29.11445762,1524.1,1523.9,0.12339352]
[1674099632589,29.80068662,1524.1,1523.9,0.12339352]
[1674099632817,1.21020479,1524.0,1523.9,0.12339352]
[1674099638419,1.44020479,1524.0,1523.9,0.12339352]
[1674099639206,2.68762707,1524.0,1523.9,0.12339352]
[1674099639677,6.05550185,1524.0,1523.9,0.12339352]
[1674099639847,6.12150185,1524.0,1523.9,0.12339352]
[1674099640627,2.75362707,1524.0,1523.9,0.12339352]
[1674099640941,2.68762707,1524.0,1523.9,0.12339352]
[1674099641627,1.68962707,1524.0,1523.9,0.12339352]
[1674099641837,1.68962707,1524.0,1523.9,1.17339352]
[1674099642100,0.21220479,1524.0,1523.9,1.17339352]
[1674099642466,0.21220479,1524.0,1523.9,0.12339352]
[1674099645091,0.89843379,1524.0,1523.9,0.12339352]
[1674099645354,1.46034809,1524.0,1523.9,0.79911616]
[1674099645928,1.92884935,1524.0,1523.9,0.79911616]
[1674099646141,1.80453465,1524.0,1523.9,0.12339352]
[1674099646456,1.93098848,1524.0,1523.9,0.12339352]
[1674099646716,2.49290278,1524.0,1523.9,0.12339352]
[1674099648350,1.80453465,1524.0,1523.9,0.12339352]
[1674099652050,2.493046,1524.0,1523.9,0.12339352]
[1674099652251,1.80453465,1524.0,1523.9,0.12339352]
[1674099654079,1.93113453,1524.0,1523.9,0.12339352]
[1674099654255,2.49304883,1524.0,1523.9,0.12339352]
[1674099655111,1.80453465,1524.0,1523.9,0.12339352]
[1674099655347,1.93126193,1524.0,1523.9,0.12339352]
[1674099655498,1.80453465,1524.0,1523.9,0.12103655]
[1674099658018,2.4933959,1524.0,1523.9,0.12103655]
[1674099659846,1.46298034,1524.0,1523.9,0.12103655]
[1674099660077,1.46298034,1524.0,1523.9,1.4527715]
[1674099661837,1.46298034,1524.0,1523.9,8.0148815]
[1674099662153,1.46298034,1524.0,1523.9,8.0808815]
[1674099664735,1.46298034,1524.0,1523.9,6.74914655]
[1674099669168,0.90106604,1524.0,1523.9,6.74914655]
[1674099669458,0.21220479,1524.0,1523.9,6.74914655]